{"text_format":"1","workbook":"xlsx","n_sheets":1,"sheets":["ADA CONSTRUCTION MAR 2024 CAA"],"not_rendered":{"charts":0,"images":0,"macros":1,"external_links":1,"defined_names":0,"comments":1,"pivot_tables":0},"unopened":[],"bounds":{"document_bytes":16777216,"sheet_cells":100000,"rows_first":2000,"rows_last":500,"rows_between":2000,"halvings":0,"cell_chars":16384,"cell_head_chars":4096},"cells_cut":0,"cells_raw":0,"read":"whole","date_system":"1900"}

{"sheet":"ADA CONSTRUCTION MAR 2024 CAA","index":0,"n_rows":250,"n_cols":10,"rows_kept":250,"cut":false,"hidden":false,"merged":[]}
["DEPARTMENT OF TRANSPORTATION - CALTRANS"]
["DBE Commitment at Award (CAA) on Federally Funded Major Construction Contracts - October 1, 2023 - March 31, 2024"]
[]
["Total Award Amount Year-to-Date (YTD)",null,"Total DBE Commitment Amount YTD",null,null,"Total Prime Contracts Awarded YTD"]
[1312583909.8999999,null,{"$f":"SUM(C7:C18)","v":305024039.43000007},null,null,{"$f":"SUM(C230:C247,I230:I247,F230:F247)","v":77}]
["Groups",null,"Commitment Dollars YTD","Firms YTD","Contracts YTD","% of Contracts","% of DBE $","% of Total $"]
["Hispanic American Male",null,{"$f":"SUMIF(D30:D108,\"m\", C30:C108)","v":96982220.150000006},{"$f":"COUNTIF(D30:D108,\"M\")","v":61},{"$f":"SUMIF(D30:D108,\"M\",E30:E108)","v":157},{"$f":"E7/E20","v":0.29400749063670412},{"$f":"C7/C5","v":0.31794943221928068},{"$f":"C7/A5","v":7.3886491689044598E-2}]
["Hispanic American Female",null,{"$f":"SUMIF(D30:D108,\"F\", C30:C108)","v":35194052.200000003},{"$f":"COUNTIF(D30:D108,\"F\")","v":17},{"$f":"SUMIF(D30:D108,\"F\",E30:E108)","v":79},{"$f":"E8/E20","v":0.14794007490636704},{"$f":"C8/C5","v":0.11538124098601311},{"$f":"C8/A5","v":2.6812801783225645E-2}]
["African American Male",null,{"$f":"SUMIF(D125:D137,\"m\", C125:C137)","v":8836232},{"$f":"COUNTIF(D125:D137,\"M\")","v":9},{"$f":"SUMIF(D125:D137,\"M\",E125:E137)","v":18},{"$f":"E9/E20","v":3.3707865168539325E-2},{"$f":"C9/C5","v":2.8968969188501701E-2},{"$f":"C9/A5","v":6.7319368562678743E-3}]
["African American Female",null,{"$f":"SUMIF(D125:D137,\"F\", C125:C137)","v":9499948.620000001},{"$f":"COUNTIF(D125:D137,\"F\")","v":3},{"$f":"SUMIF(D125:D137,\"F\",E125:E137)","v":14},{"$f":"E10/E20","v":2.6217228464419477E-2},{"$f":"C10/C5","v":3.1144917750589765E-2},{"$f":"C10/A5","v":7.2375933822956592E-3}]
["Asian Pacific Male",null,{"$f":"SUMIF(D154:D166,\"m\", C154:C166)","v":10704747.51},{"$f":"COUNTIF(D154:D166,\"M\")","v":7},{"$f":"SUMIF(D154:D166,\"M\",E154:E166)","v":20},{"$f":"E11/E20","v":3.7453183520599252E-2},{"$f":"C11/C5","v":3.5094766727252105E-2},{"$f":"C11/A5","v":8.1554767122016206E-3}]
["Asian Pacific Female",null,{"$f":"SUMIF(D154:D166,\"F\", C154:C166)","v":9478350.1099999994},{"$f":"COUNTIF(D154:D166,\"F\")","v":5},{"$f":"SUMIF(D154:D166,\"F\",E154:E166)","v":25},{"$f":"E12/E20","v":4.6816479400749067E-2},{"$f":"C12/C5","v":3.1074108544730569E-2},{"$f":"C12/A5","v":7.2211384266641773E-3}]
["Subcontinent Asian Male",null,{"$f":"SUMIF(D140:D151,\"m\", C140:C151)","v":32214734.350000001},{"$f":"COUNTIF(D140:D151,\"M\")","v":9},{"$f":"SUMIF(D140:D151,\"M\",E140:E151)","v":24},{"$f":"E13/E20","v":4.49438202247191E-2},{"$f":"C13/C5","v":0.10561375559185379},{"$f":"C13/A5","v":2.4542990438191723E-2}]
["Subcontinent Asian Female",null,{"$f":"SUMIF(D140:D151,\"F\", C140:C151)","v":767276},{"$f":"COUNTIF(D140:D151,\"F\")","v":2},{"$f":"SUMIF(D140:D151,\"F\",E140:E151)","v":6},{"$f":"E14/E20","v":1.1235955056179775E-2},{"$f":"C14/C5","v":2.5154607533026331E-3},{"$f":"C14/A5","v":5.8455386677599562E-4}]
["Native American Male",null,{"$f":"SUMIF(D111:D122,\"m\", C111:C122)","v":13984576.120000001},{"$f":"COUNTIF(D111:D122,\"M\")","v":7},{"$f":"SUMIF(D111:D122,\"M\",E111:E122)","v":21},{"$f":"E15/E20","v":3.9325842696629212E-2},{"$f":"C15/C5","v":4.5847455650161371E-2},{"$f":"C15/A5","v":1.0654233999459452E-2}]
["Native American Female",null,{"$f":"SUMIF(D111:D122,\"F\", C111:C122)","v":1885216.8},{"$f":"COUNTIF(D111:D122,\"F\")","v":4},{"$f":"SUMIF(D111:D122,\"F\",E111:E122)","v":4},{"$f":"E16/E20","v":7.4906367041198503E-3},{"$f":"C16/C5","v":6.1805515510282866E-3},{"$f":"C16/A5","v":1.4362638348535193E-3}]
["Non Minority Women",null,{"$f":"SUMIF(D173:D224,\"F\", C173:C224)","v":84125759.670000017},{"$f":"COUNTIF(D173:D220,\"F\")","v":48},{"$f":"SUMIF(D173:D220,\"F\",E173:E220)","v":165},{"$f":"E17/E20","v":0.3089887640449438},{"$f":"C17/C5","v":0.2758004248688275},{"$f":"C17/A5","v":6.4091719421129581E-2}]
["Other Men",null,{"$f":"SUMIF(D169:D170,\"m\", C169:C170)","v":1350925.9},{"$f":"COUNTIF(D169:D170,\"M\")","v":1},{"$f":"SUMIF(D169:D170,\"M\",E169:E170)","v":1},{"$f":"E18/E20","v":1.8726591760299626E-3},{"$f":"C18/C5","v":4.4289161684583347E-3},{"$f":"C18/A5","v":1.0292110773344168E-3}]
[null,null,null,null,null,{"$f":"E19/E20","v":0},{"$f":"C19/C5","v":0},{"$f":"C19/A5","v":0}]
["Total  ",null,{"$f":"SUM(C7:C18)","v":305024039.43000007},{"$f":"SUM(D7:D19)","v":173},{"$f":"SUM(E7:E19)","v":534}]
["Total Primes Contracts",null,{"$f":"SUM(C230:C247,I230:I247,F230:F247)","v":77}]
[]
["Yellow = DBEs",null,"Green = Trucking",25,37193812.920000002,0.14090376642855185]
["Red = Prime Contractor",null,"Blue = Supplier",29,54228818.000000007,0.20543859597303282]
["Red Italic = DBE firm as Prime",null,"White = Other",108,172543435.16,0.65365763759841533]
["BOLD = women"]
["* = Used both as Trucking & Supplier"]
[]
["Hispanic American","Column1","Dollars","M/F","Contract","Contract #","Number of Primes ","Prime Name","Districts"]
["3P LANDSCAPING ",-4142,1400555,"M",3,{"$f":"fetchcomment(E30)","v":"08-1C5704\n12-0N8904\n06-0X3804"},3,{"$f":"fetchcomment(G30)","v":"SEMA CONSTRUCTION INC\nSECURITY PAVING COMPANY, INC.\nGRIFFITH COMPANY"},"6,8,12"]
["A & M CONSULTING ENGINEERS",-4142,15600,"M",1,{"$f":"fetchcomment(E31)","v":"10-1E3004"},1,{"$f":"fetchcomment(G31)","v":"BAY CITIES PAVING & GRADING, INC."},10]
["A STAR SWEEPING",43,1001080,"M",6,{"$f":"fetchcomment(E32)","v":"01-0J6314\n03-4H0704\n01-0E11U4\n03-1H9904\n03-3H6104\n01-0H1504"},6,{"$f":"fetchcomment(G32)","v":"GRANTIE CONSTRUCTION COMPANY\nDESILVA GATES CONSTRUCTION LLC\nA. TEICHERT & SON INC DBA TEICHERT CONSTRUCTION\nO.C. JONES & SONS INC\nBAY CITIES PAVING & GRADING INC\nCAL VALLEY CONSTRUCTION INC"},"1,3,4,6"]
["ABSL CONSTRUCTION",-4142,5546639.5499999998,"M",16,{"$f":"fetchcomment(E33)","v":"01-0J6314\n02-4H0204\n03-4H0704\n10-0G8304\n01-0E11U4\n03-1H9904\n11-430254\n03-1H6304\n04-4J5404\n05-1H3104\n10-1E3004\n04-1Q5814\n01-0C55U4\n03-2J3204\n03-3H6104\n04-1J9604\n06-0X3004\n06-1A4604\n01-0H1504\n04-3W7504\n04-3W7604\n07-322504"},11,{"$f":"fetchcomment(G33)","v":"GRANTIE CONSTRUCTION COMPANY\nTULLIS INC\nDESILVA GATES CONSTRUCTION LLC\nVIKING CONSTRUCTION COMPANY\nA. TEICHERT & SON INC DBA TEICHERT CONSTRUCTION\nCSI/CJA A JOINT VENTURE\nO.C. JONES & SONS, INC.\nGHILOTTI BROS, INC.\nBAY CITIES PAVING & GRADING, INC.\nAMERICAN CIVIL CONSTRUCTORS WEST COAST, LLC dba ACC WEST COAST\nBEADOR CONSTRUCTION COMPANY, INC."},"1,2,3,4,7,10,11"]
["AERO-ENVIRONMENTAL CONSULTING",-4142,22000,"M",1,{"$f":"fetchcomment(E34)","v":"04-3W7604"},1,{"$f":"fetchcomment(G34)","v":"AMERICAN CIVIL CONSTRUCTORS WEST COAST, LLC"},4]
["ALL STATE TRUCKING",43,51260,"M",1,{"$f":"fetchcomment(E35)","v":"08-1C5704"},1,{"$f":"fetchcomment(G35)","v":"SEMA CONSTRUCTION"},8]
["ALCORN FENCE COMPANY",-4142,67989,"M",1,{"$f":"fetchcomment(E36)","v":"07-322904"},1,{"$f":"fetchcomment(G36)","v":"C. A. RASMUSSEN, INC."},7]
["ALFARO GENERAL ENGINEERING",-4142,21070695.439999998,"M",2,{"$f":"fetchcomment(E37)","v":"07-338604"},1,{"$f":"fetchcomment(G37)","v":"ALFARO COMMUNICATIONS CONSTRUCTION, INC."},"7,8"]
["ALTAMONT REBAR CORP",-4142,472500,"M",1,{"$f":"fetchcomment(E38)","v":"04-2Q5704"},1,{"$f":"fetchcomment(G38)","v":"DISNEY CONSTRUCTION, INC."},4]
["ALVAREZ AND SHAW INC",43,2183337,"M",1,{"$f":"fetchcomment(E39)","v":"11-430304"},1,{"$f":"fetchcomment(G39)","v":"SB GENERAL ENGINEERING"},11]
["ANCO IRON & CONSTRUCTION",-4142,295699.78999999998,"M",1,{"$f":"fetchcomment(E40)","v":"09-368004"},1,{"$f":"fetchcomment(G40)","v":"PAPICH CONSTRUCITON COMPANY INC"},9]
["ARBISO TRANPORTATION INC",43,1377920,"M",3,{"$f":"fetchcomment(E41)","v":"02-3H6504\n02-4H0204\n02-4H0504"},2,{"$f":"fetchcomment(G41)","v":"J.F. SHEA CONSTRUCTION INC\nTULLIS INC"},2]
["ARGUELLO CONCRETE CONSTRUCTION ",-4142,110160,"M",1,{"$f":"fetchcomment(E42)","v":"06-0X3004"},1,{"$f":"fetchcomment(G42)","v":"BAY CITIES PAVING AND GRADING"},6]
["AUSTIN ENTERPRISE",-4142,3652175,"F",13,{"$f":"fetchcomment(E43)","v":"10-0G8304\n01-0E11U4\n03-1H9904\n11-430394\n05-1H3104\n10-1E3004\n11-2T3434\n03-3H6104\n01-0H1504\n04-3W7504\n04-3W7604\n06-0X2604\n07-322504"},9,{"$f":"fetchcomment(G43)","v":"VIKING CONSTRUCTION COMPANY INC\nGRANITE CONSTRUCTION COMPANY\nA. TEICHERT & SON INC DBA TEICHERT CONSTRUCTION\nGRIFFITH COMPANY\nBAY CITIES PAVING & GRADING, INC.\nWALSH CONSTRUCTION COMPANY II, LLC\nDESILVA GATES CONSTRUCTION LLC\nAMERICAN CIVIL CONSTRUCTORS WEST COAST, LLC dba ACC WEST COAST\nBEADOR CONSTRUCTION COMPANY, INC."},"1,3,4,5,6,7,10,11"]
["BARGAS ENVIRONMENTAL CONSULTING",-4142,96990,"F",2,{"$f":"fetchcomment(E44)","v":"03-4H0704\n03-1H9904"},2,{"$f":"fetchcomment(G44)","v":"DESILVA GATES CONSTRUCTION LLC\nA. TEICHERT & SON INC DBA TEICHERT CONSTRUCTION"},3]
["BAY LINE CUTTING AND CORING",-4142,20520,"M",1,{"$f":"fetchcomment(E45)","v":"04-0K7804"},1,{"$f":"fetchcomment(G45)","v":"GHILOTTI BROS INC"},4]
["BELLAGIO CONSTRUCITON ",-4142,50547,"M",1,{"$f":"fetchcomment(E46)","v":"06-0X3004"},1,{"$f":"fetchcomment(G46)","v":"BAY CITIES PAVING AND GRADING"},6]
["BERT W. SALAS",-4142,715884,"M",1,{"$f":"fetchcomment(E47)","v":"11-2T3434"},1,{"$f":"fetchcomment(G47)","v":"WALSH CONSTRUCTION COMPANY II, LLC"},11]
["BLANCO CONSTRUCTION",-4142,158500,"M",1,{"$f":"fetchcomment(E48)","v":"12-0S3104"},1,{"$f":"fetchcomment(G48)","v":"AUTOBAHN CONSTRUCTION INC."},12]
["BRUCE ANDERSON",-4142,927740,"M",1,{"$f":"fetchcomment(E49)","v":"07-320804"},1,{"$f":"fetchcomment(G49)","v":"CALPROMAX ENGINEERING, INC."},7]
["BT TRUCKING",43,1740496.6,"M",2,{"$f":"fetchcomment(E50)","v":"12-0S1504\n03-3H6104"},2,{"$f":"fetchcomment(G50)","v":"POWELL CONSTRUCTORS, INC\nDESILVA GATES CONSTRUCTOIN LLC"},"3,12"]
["C & N REINFORCING INC",-4142,679550.64,"M",3,{"$f":"fetchcomment(E51)","v":"04-0K7804\n04-4J5404\n10-1E3004"},2,{"$f":"fetchcomment(G51)","v":"BAY CITIES PAVING & GRADING, INC.\nGHILOTTI BROS, INC."},4]
["CENTRAL COAST TRAFFIC SAFETY, INC.",-4142,852349.7,"M",2,{"$f":"fetchcomment(E52)","v":"05-1H3104\n09-368004"},2,{"$f":"fetchcomment(G52)","v":"GRANITE CONSTRUCTION COMPANY\nPAPICH CONSTRUCITON COMPANY INC"},"5,9"]
["CHAVEZ TRUCKING",43,2056114.65,"F",1,{"$f":"fetchcomment(E53)","v":"04-1Q5814"},1,{"$f":"fetchcomment(G53)","v":"BAY CITIES PAVING & GRADING, INC."},4]
["CLAY MIRANDA TRUCKING",-4142,409616.88,"M",1,{"$f":"fetchcomment(E54)","v":"06-0X2604"},1,{"$f":"fetchcomment(G54)","v":"A. TEICHERT & SON, INC. DBA TEICHERT CONSTRUCTION"},6]
["COASTLINE SWEEPERS",-4142,55890,"F",1,{"$f":"fetchcomment(E55)","v":"05-1H3104"},1,{"$f":"fetchcomment(G55)","v":"GRANITE CONSTRUCTION COMPANY"},5]
["COVARRUBIAS TRAFFIC CONTROL",-4142,515200,"F",1,{"$f":"fetchcomment(E56)","v":"07-322504"},1,{"$f":"fetchcomment(G56)","v":"BEADOR CONSTRUCTION COMPANY, INC."},7]
["D.B. ELECTRIC, INC.",-4142,477570,"M",1,{"$f":"fetchcomment(E57)","v":"07-351304"},1,{"$f":"fetchcomment(G57)","v":"POWELL CONSTRUCTORS, INC."},7]
["DELTA BAY CONSULTANTS LLC",-4142,24948,"M",9,{"$f":"fetchcomment(E58)","v":"01-0J6314\n10-1H6504\n10-0G8304\n01-0E11U4\n04-4J5404\n07-347504\n01-0C55U4\n03-4H8904\n06-0X2604"},7,{"$f":"fetchcomment(G58)","v":"GRANITE CONSTRUCTION COMPANY\nMARINA LANDSCAPE INC\nVIKING CONSTRUCTION COMPANY INC\nGHILOTTI BROS, INC.\nGRIFFITH COMPANY\nST. FRANCIS ELECTRIC LLC\nA. TEICHERT & SON, INC. DBA TEICHERT CONSTRUCTION"},"1,3,4,6,7,10"]
["DESIGN BUILD ENGINEERING",-4142,1426760,"M",2,{"$f":"fetchcomment(E59)","v":"07-322904\n08-1H3804"},2,{"$f":"fetchcomment(G59)","v":"C. A. RASMUSSEN, INC.\nACCU CONSTRUCTION"},"7,8"]
["DIRT DYNASTY",-4142,4131946.98,"M",3,{"$f":"fetchcomment(E60)","v":"10-1G2504\n04-0Q0704\n04-3W7604"},3,{"$f":"fetchcomment(G60)","v":"DIRT DYNASTY\nST. FRANCIS ELECTRIC LLC\nAMERICAN CIVIL CONSTRUCTORS WEST COAST, LLC"},"4,10"]
["DRAGON MATERIAL TRANSPORT",33,7061140.8799999999,"F",8,{"$f":"fetchcomment(E61)","v":"02-3H6804\n02-4H0204\n02-4H6604\n02-4H0504\n03-4H6004\n04-0K7804\n04-4J5404\n04-1J9604"},7,{"$f":"fetchcomment(G61)","v":"J.F. SHEA CONSTRUCTION INC\nTULLIS INC\nSTIMPEL-WIEBELHAUS ASSOCIATES\nTULLIS INC\nDESILVA GATES CONSTRUCTION LLC\nGHILOTTI BROS\nO.C. JONES & SONS INC"},"2,3,4"]
["E & L GONZALEZ ENGINEERING",-4142,1503549,"M",1,{"$f":"fetchcomment(E62)","v":"07-330304"},1,{"$f":"fetchcomment(G62)","v":"FEC FUTURE CONTRACTORS AND ENGINEERS INC"},7]
["ENDEMIC ENVIRONMENTAL SERVICES",-4142,188525,"M",7,{"$f":"fetchcomment(E63)","v":"02-0J6404\n08-1J2604\n01-0C55U4\n02-4H0004\n01-0H1504\n06-0X2604\n07-322504"},6,{"$f":"fetchcomment(G63)","v":"BALDWIN CONTRACTING COMPANY, INC. DBA KNIFE RIVER CONSTRUCTION\nMARTIN MARIETTA SAN DIEGO AGGREGATES LLC DBA ATP GENERAL ENGINEERING CONTRACTORS\nGRANITE CONSTRUCTION COMPANY\nROCKY MOUNTAIN CONSTRUCTION\nA. TEICHERT & SON, INC. DBA TEICHERT CONSTRUCTION\nBEADOR CONSTRUCTION COMPANY, INC."},"1,2,6,7,8"]
["FLASH TRAFFIC, INC.",-4142,100866,"F",2,{"$f":"fetchcomment(E64)","v":"03-1H6304\n06-0X2604"},2,{"$f":"fetchcomment(G64)","v":"O.C. JONES & SONS, INC.\nA. TEICHERT & SON, INC. DBA TEICHERT CONSTRUCTION"},"3,6"]
["FRONTLINE TRAFFIC CONTROL",-4142,2001404,"M",6,{"$f":"fetchcomment(E65)","v":"07-330304\n07-322904\n12-0S1504\n07-347504\n07-348804\n07-349504"},5,{"$f":"fetchcomment(G65)","v":"FEC FUTURE CONTRACTORS AND ENGINEERS INC\nC. A. RASMUSSEN, INC.\nPOWELL CONSTRUCTORS INC\nGRIFFITH COMPANY\nALFARO COMMUNICATIONS CONSTRUCTION"},"7,12"]
["FULL TRAFFIC MAINTENANCE, INC.",-4142,790325,"M",2,{"$f":"fetchcomment(E66)","v":"07-338604\n08-496124"},1,{"$f":"fetchcomment(G66)","v":"ALFARO COMMUNICATIONS CONSTRUCTION, INC."},"7,8"]
["G&F CONCRETE CUTTING, INC.",-4142,1103830.23,"F",8,{"$f":"fetchcomment(E67)","v":"07-322904\n11-430394\n10-1E3004\n11-2T3434\n03-3H6104\n06-0X3004\n07-349504\n07-322504"},7,{"$f":"fetchcomment(G67)","v":"C. A. RASMUSSEN, INC.\nGRIFFITH COMPANY\nBAY CITIES PAVING & GRADING, INC.\nWALSH CONSTRUCTION COMPANY II, LLC\nDESILVA GATES CONSTRUCTION LLC\nALFARO COMMUNICATIONS CONSTRUCITON INC\nBEADOR CONSTRUCTION COMPANY, INC."},"3,6,7,11"]
["GEOSTRUCTURAL",-4142,1050496,"M",2,{"$f":"fetchcomment(E68)","v":"12-0N8904\n04-4K1404"},2,{"$f":"fetchcomment(G68)","v":"SECURITY PAVING COMPANY, INC.\nGRANITE ROCK COMPANY"},"4,12"]
["GOLDEN BAY FENCE PLUS INC",33,24674,"M",1,{"$f":"fetchcomment(E69)","v":"04-0K7804\n"},1,{"$f":"fetchcomment(G69)","v":"GHILOTTI BROS., INC."},4]
["GOLDEN WEST FUEL",-4142,4001246,"F",1,{"$f":"fetchcomment(E70)","v":"11-430254"},1,{"$f":"fetchcomment(G70)","v":"BALDWIN CONTRACTING COMPANY, INC. DBA KNIFE RIVER CONSTRUCTION"},11]
["GRIT & GRAVEL",-4142,2851202.34,"F",1,{"$f":"fetchcomment(E71)","v":"07-322904"},1,{"$f":"fetchcomment(G71)","v":"C. A. RASMUSSEN, INC."},7]
["HER-CON CONSTRUCTION SERVICES",-4142,363047.63,"M",1,{"$f":"fetchcomment(E72)","v":"07-355104"},1,{"$f":"fetchcomment(G72)","v":"ALDRIDGE ELECTRIC, INC."},7]
["HIGH LIGHT ELECTRIC INC",-4142,6881407,"M",6,{"$f":"fetchcomment(E73)","v":"06-0U4304\n06-0X3304\n11-430394\n05-1H3104\n11-2T3434\n07-322504"},5,{"$f":"fetchcomment(G73)","v":"GRIFFITH COMPANY \nSECURITY PAVING COMPANY\nGRANITE CONSTRUCTION COMPANY\nWALSH CONSTRUCTION COMPANY II, LLC\nBEADOR CONSTRUCTION COMPANY, INC."},"5,6,7,12"]
["J PEREZ TRANSPORT",43,359880,"M",1,{"$f":"fetchcomment(E74)","v":"09-368004"},1,{"$f":"fetchcomment(G74)","v":"PAPICH CONSTRUCITON COMPANY INC"},9]
["JEFFERSON STATE HIGHWAY INC",-4142,1089102.6600000001,"M",10,{"$f":"fetchcomment(E75)","v":"01-0J6314\n02-3H6504\n02-3H82U4\n02-4H6604\n02-0J6404\n02-4H0504\n03-1H6304\n01-0C55U4\n02-4H0004\n09-368004"},9,{"$f":"fetchcomment(G75)","v":"GRANITE CONSTRUCTION COMPANY\nJ.F. SHEA CONSTRUCTION INC\nHAT CREEK CONSTRUCTION & MATERIALS INC\nSTIMPEL-WIEBELHAUS ASSOCIATES INC\nBALDWIN CONTRACTING COMPANY INC\nTULLIS INC\nO.C. JONES & SONS, INC.\nROCKY MOUNTAIN CONSTRUCTION\nPAPICH CONSTRUCTION COMPANY INC"},"1,2,3,9"]
["KODIAK TRUCKING INC",43,452270,"M",1,{"$f":"fetchcomment(E76)","v":"06-0X3304\n"},1,{"$f":"fetchcomment(G76)","v":"SECURITY PAVING COMPANY INC"},6]
["L&B METAL PRODUCT FABRICATION",-4142,131038.05,"M",1,{"$f":"fetchcomment(E77)","v":"02-4H0504"},1,{"$f":"fetchcomment(G77)","v":"TULLIS INC"},2]
["LA FIRMA INC",-4142,110700,"M",4,{"$f":"fetchcomment(E78)","v":"01-0J6314\n05-1H3104\n01-0C55U4\n06-0W9704"},2,{"$f":"fetchcomment(G78)","v":"GRANITE CONSTRUCTION\nBORTOLUSSI & WATKIN INC"},"1,5,6"]
["LA STEEL SERVICES, INC.",-4142,1959475.05,"M",2,{"$f":"fetchcomment(E79)","v":"12-0N8904\n07-322504"},2,{"$f":"fetchcomment(G79)","v":"SECURITY PAVING COMPANY, INC.\nBEADOR CONSTRUCTION COMPANY, INC."},"7,12"]
["LOGISTICAL ENTERPRISES",33,1916163.76,"F",7,{"$f":"fetchcomment(E80)","v":"03-1H9904\n07-320804\n02-0J6404\n03-4H6004\n03-1H6304\n03-2J3204\n03-3H6104"},5,{"$f":"fetchcomment(G80)","v":"A. TEICHERT & SON INC DBA TEICHERT CONSTRUCTION\nCALPROMAX ENGINEERING, INC.\nDESILVA GATES CONSTRUCTION\nCSI/CJA A JOINT VENTURE\nO.C. JONES & SONS, INC."},"2,3,7"]
["LONE STAR LANDSCAPE",-4142,240438,"M",5,{"$f":"fetchcomment(E81)","v":"03-1H6304\n04-2Q5704\n04-3Q7604\n04-0Q0704\n04-4K1404"},5,{"$f":"fetchcomment(G81)","v":"O.C. JONES & SONS, INC.\nDISNEY CONSTRUCTION, INC.\nGHILOTTI BROS INC\nST. FRANCIS ELECTRIC LLC\nGRANITE ROCK COMPANY"},"3,4"]
["M & S ENVIRONMENTAL LANDSCAPES",33,1586339.5,"M",8,{"$f":"fetchcomment(E82)","v":"01-0H6104\n02-3H6504\n02-3H82U4\n02-4H0204\n02-4H6604\n01-0E11U4\n02-0J6404\n02-4H0504"},7,{"$f":"fetchcomment(G82)","v":"MERCER FRASER COMPANY\nJ.F. SHEA CONSTRUCTION INC\nHAT CREEK CONSTRUCTION AND MATERIALS INC\nTULLIS INC\nSATIMPEL-WIEBELHAUS ASSOCIATES INC\nGRANITE CONSTRUCTION COMPANY\nBALDWIN CONTRACTING DBA KNIFE RIVER"},"1,2"]
["MANERI TRAFFIC CONTROL",-4142,7837739.7400000002,"F",10,{"$f":"fetchcomment(E83)","v":"11-430394\n12-0N8904\n07-321604\n08-1H3804\n11-430254\n07-351304\n08-1H9914\n08-1J2604\n07-322504\n07-355104"},10,{"$f":"fetchcomment(G83)","v":"GRIFFITH COMPANY\nSECURITY PAVING COMPANY, INC.\nRJ NOBLE COMPANY\nACCU CONSTRUCTION INC\nCSI/CJA A JOINT VENTURE\nPOWELL CONSTRUCTORS, INC.\nPETERSON-CHASE GENERAL ENGINEERING CONSTRUCTION INC.\nMARTIN MARIETTA SAN DIEGO AGGREGATES LLC DBA ATP GENERAL ENGINEERING CONTRACTORS\nBEADOR CONSTRUCTION COMPANY, INC.\nALDRIDGE ELECTRIC, INC."},"7,8,11,12"]
["MESA TRAFFIC SERVICES",-4142,238875,"M",1,{"$f":"fetchcomment(E84)","v":"06-0X3004"},1,{"$f":"fetchcomment(G84)","v":"BAY CITIES PAVING AND GRADING"},6]
["MJD ENGINEERING",-4142,8469616,"M",2,{"$f":"fetchcomment(E85)","v":"03-4H6004\n03-3H6104"},2,{"$f":"fetchcomment(G85)","v":"TULLIS INC\nDESILVA GATES  CONSTRUCITON LLC"},"2,3"]
["MONZON & SON ENTERPRISES, INC.",43,1353492,"M",2,{"$f":"fetchcomment(E86)","v":"12-0N8904\n07-322504"},2,{"$f":"fetchcomment(G86)","v":"SECURITY PAVING COMPANY, INC.\nBEADOR CONSTRUCTION COMPANY, INC."},"7,12"]
["MORALES CONTRACTING",-4142,69092.5,"M",1,{"$f":"fetchcomment(E87)","v":"11-430254"},1,{"$f":"fetchcomment(G87)","v":"CSI/CJA A JOINT VENTURE"},11]
["POLO ENGINEERING INC",-4142,2058303.6,"F",1,{"$f":"fetchcomment(E88)","v":"07-357004"},1,{"$f":"fetchcomment(G88)","v":"POLO ENGINEERING INC"},7]
["PRE-CON PRODUCTS LTD",-4142,698314.92999999993,"M",3,{"$f":"fetchcomment(E89)","v":"06-0U4304\n05-1H3104\n06-0X3004"},2,{"$f":"fetchcomment(G89)","v":"GRIFFITH COMPANY\nGRANITE CONSTRUCTION COMPANY"},"5, 6"]
["QA CONSTRUCTORS",-4142,354020,"M",1,{"$f":"fetchcomment(E90)","v":"10-0G8304"},1,{"$f":"fetchcomment(G90)","v":"VIKING CONSTRUCTION COMPANY INC"},10]
["QUALITY TRAFFIC CONTROL",-4142,1368247.4,"M",2,{"$f":"fetchcomment(E91)","v":"08-1C5704\n08-1G6404"},2,{"$f":"fetchcomment(G91)","v":"SEMA CONSTRUCTION INC\nSULLY-MILLER CONTRACTING COMPANY"},8]
["RANGEL BROTHERS TRUCKING",43,1680735,"M",1,{"$f":"fetchcomment(E92)","v":"06-0X3304"},1,{"$f":"fetchcomment(G92)","v":"SECURITY PAVING COMPANY"},6]
["REYCON CONSTRUCTION, INC.",-4142,2355700,"M",1,{"$f":"fetchcomment(E93)","v":"11-2T3434"},1,{"$f":"fetchcomment(G93)","v":"WALSH CONSTRUCTION COMPANY II, LLC"},11]
["ROBINSON SWEEPING INC",43,636700,"F",3,{"$f":"fetchcomment(E94)","v":"01-0H6104\n04-3Q7604\n06-0X2604"},3,{"$f":"fetchcomment(G94)","v":"MERCER FRASER COMPANY\nGHILOTTI BROS\nA. TEICHERT & SON, INC. DBA TEICHERT CONSTRUCTION"},"1,4,6"]
["RUPERT CONSTRUCTION SUPPLY",33,3390227.98,"M",1,{"$f":"fetchcomment(E95)","v":"03-3H6104"},1,{"$f":"fetchcomment(G95)","v":"DESILVA GATES CONSTRUCTION LLC"},3]
["S & S TRUCKING",43,73689.55,"M",3,{"$f":"fetchcomment(E96)","v":"04-0K7804\n04-4J5404\n04-4K1404"},2,{"$f":"fetchcomment(G96)","v":"GHILOTTI BROS., INC.\nGRANITE ROCK COMPANY"},4]
["SANDOVAL SWEEPING",43,700000,"M",1,{"$f":"fetchcomment(E97)","v":"07-321604"},1,{"$f":"fetchcomment(G97)","v":"R.J. NOBLE COMPANY"},7]
["SANTAMARIA CONCRETE",-4142,761158.72,"M",1,{"$f":"fetchcomment(E98)","v":"04-3W7504"},1,{"$f":"fetchcomment(G98)","v":"AMERICAN CIVIL CONSTRUCTORS WEST COAST, LLC dba ACC WEST COAST"},4]
["SIERRA TREE COMPANY",-4142,42000,"M",1,{"$f":"fetchcomment(E99)","v":"04-4G21A4"},1,null,4]
["SWPPQUEEN",-4142,267945,"F",6,{"$f":"fetchcomment(E100)","v":"03-4H0704\n07-322904\n03-4H6004\n07-347504\n11-2T3434\n03-3H6104"},4,null,"3,7,11"]
["T.D.W. CONSTRUCTION INC",-4142,204530,"M",1,{"$f":"fetchcomment(E101)","v":"03-4H0704"},1,null,3]
["TAYLOR JANE CONSTRUCTION LP",-4142,474635,"F",1,{"$f":"fetchcomment(E102)","v":"06-0X2604"},1,null,6]
["TOTAL SITE SUPPLY COMPANY",-4142,44108.6,"M",1,{"$f":"fetchcomment(E103)","v":"06-0X2604"},1,null,6]
["TR DIGITAL, INC.",-4142,848000,"M",1,{"$f":"fetchcomment(E104)","v":"03-4H8904"},1,null,3]
["TULLY INC",-4142,507910,"F",13,{"$f":"fetchcomment(E105)","v":"10-1H6504\n10-0G8304\n03-1H9904\n07-320804\n03-1H6304\n10-1E3004\n04-1Q5814\n03-2J3204\n04-1J9604\n04-3Q7604\n06-0X3004\n03-4H8904\n04-0Q0704"},8,null,"3,4,6,10"]
["VALDIVIA TRUCKING",43,5243956,"M",5,{"$f":"fetchcomment(E106)","v":"01-0J6314\n01-0E11U4\n01-0C55U4\n04-1J9604\n03-4H8904"},3,null,"1,4"]
["WESTERN TRAFFIC SUPPLY, INC.",-4142,5121920,"M",4,{"$f":"fetchcomment(E107)","v":"04-1Q5814\n10-1E3004\n04-3W7504\n04-3W7604"},2,null,"4,10"]
[null,null,null,null,null,{"$f":"fetchcomment(E108)","v":""},null,{"$f":"fetchcomment(G108)","v":""}]
[]
["Native American","Column1","Dollars","M/F","Contract","Contract #","Number of Primes ","Prime Name","Districts"]
["CREST EQUIPMENT",-4142,757512,"F",1,{"$f":"fetchcomment(E111)","v":"11-430254"},1,{"$f":"fetchcomment(G111)","v":"CSI/CJA A JOINT VENTURE"},11]
["DISABLED AMERICAN VETERAN",33,197013.78,"M",1,{"$f":"fetchcomment(E112)","v":"06-1A4604"},1,{"$f":"fetchcomment(G112)","v":"CAL VALLEY CONSTRUCTION INC"},6]
["FORCE TRAFFIC CONTROL",-4142,479000,"M",1,{"$f":"fetchcomment(E113)","v":"06-0X3804"},1,{"$f":"fetchcomment(G113)","v":"GRIFFITH COMPANY"},6]
["GLOBAL TRANSLOADING",-4142,49230,"F",1,{"$f":"fetchcomment(E114)","v":"07-351304"},1,{"$f":"fetchcomment(G114)","v":"POWELL CONSTRUCTORS, INC."},7]
["KRC SAFETY CO INC",33,1767565,"M",9,{"$f":"fetchcomment(E115)","v":"10-0G8304\n10-1L6304\n02-0J6404\n04-1J9604\n06-0W9704\n06-1A4604\n09-368004\n04-0Q0704\n06-0X2604"},9,{"$f":"fetchcomment(G115)","v":"VIKING CONSTRUCTION COMPANY\nCORAL CONSTRUCTION COMPANY\nBALDWIN CONTRACTING COMPANY INC DBA KNIFE RIVER\nO.C. JONES & SONS INC\nBORTOLUSSI & WATKIN INC\nCAL VALLEY CONSTRUCTION INC\nPAPICH CONSTRUCITON COMPANY\nST. FRANCIS ELECTRIC LLC\nA. TEICHERT & SON, INC. DBA TEICHERT CONSTRUCTION"},"2,4,6,9,10"]
["MCCULLOUGH CONSTRUCTION INC",-4142,8619677.8399999999,"M",1,{"$f":"fetchcomment(E116)","v":"01-434844"},1,{"$f":"fetchcomment(G116)","v":"MCCULLOUGH CONSTRUCTION INC"},1]
["S.T. RHOADES CONSTRUCTION",-4142,1320062,"M",3,{"$f":"fetchcomment(E117)","v":"01-0H6104\n02-0J6404\n02-4H0504"},3,{"$f":"fetchcomment(G117)","v":"MERCER FRASER\nBALDWIN CONTRACTING DBA KNIFE RIVER\nTULLIS INC"},"1,2"]
["SAM'S EQUIPMENT & SUPPLIES ",33,1411957.5,"M",5,{"$f":"fetchcomment(E118)","v":"10-1H6504\n03-1H9904\n12-0S1504\n06-0W9704\n09-368004"},5,{"$f":"fetchcomment(G118)","v":"MARINA LANDSCAPE INC\nA. TEICHERT & SON INC DBA TEICHERT CONSTRUCTION\nPOWELL CONSTRUCTORS INC\nBORTOLUSSI & WATKIN INC\nPAPICH CONSTRUCTION COMPANY"},"3,6,9,10,12"]
["SPIRIT ROAD OILS",-4142,151710,"F",1,{"$f":"fetchcomment(E119)","v":"01-0H1504"},1,{"$f":"fetchcomment(G119)","v":"GRANITE CONSTRUCTION COMPANY"},1]
["TOTAL TRAFFIC CONTROL",33,189300,"M",1,{"$f":"fetchcomment(E120)","v":"10-1H6504"},1,{"$f":"fetchcomment(G120)","v":"MARINA LANDSCAPE INC"},10]
["WEST COAST DRILLING",-4142,926764.8,"F",1,{"$f":"fetchcomment(E121)","v":"01-0J6314"},1,{"$f":"fetchcomment(G121)","v":"GRANITE CONSTRUCTION COMPANY"},1]
[null,null,null,null,null,{"$f":"fetchcomment(E122)","v":""},null,{"$f":"fetchcomment(G122)","v":""}]
[]
["African American","Column1","Dollars","M/F","Contract","Contract #","Number of Primes ","Prime Name","Districts"]
["ALLUVION BIOLOGICAL CONSULTING",-4142,536010,"M",1,{"$f":"fetchcomment(E125)","v":"01-0E11U4"},1,{"$f":"fetchcomment(G125)","v":"GRANITE CONSTRUCTION COMPANY"},1]
["APPIAN UDBE SWPPPS",-4142,850,"F",1,{"$f":"fetchcomment(E126)","v":"02-4H0004"},1,{"$f":"fetchcomment(G126)","v":"ROCKY MOUNTAIN CONSTRUCTION"},2]
["BLACK DIAMOND ASPHALT INC",33,9380380.370000001,"F",10,{"$f":"fetchcomment(E127)","v":"01-0H6104\n02-3H6504\n03-4H0704\n03-1H9904\n02-0J6404\n03-1H6304\n10-1E3004\n01-0C55U4\n03-2J3204\n06-0X3004"},8,{"$f":"fetchcomment(G127)","v":"MERCER FRASER COMPANY\nJ.F. SHEA CONSTRUCTION INC\nDESILVA GATES CONSTRUCTION LLC\nA. TEICHERT & SON INC DBA TEICHERT CONSTRUCTION\nBALDWIN CONTRACTING COMPANY INC DBA KNIFE RIVER\nO.C. JONES & SONS, INC.\nBAY CITIES PAVING & GRADING, INC.\nGRANITE CONSTRUCTION COMPANY"},"1,2,3,6,10"]
["CGO CONSTRUCTION COMPANY",-4142,119600,"M",2,{"$f":"fetchcomment(E128)","v":"11-430394\n12-0N8904"},2,{"$f":"fetchcomment(G128)","v":"GRIFFITH COMPANY\nSECURITY PAVING COMPANY, INC."},"11,12"]
["DEPENDABLE PETROLEUM PRODUCTS",33,6520183,"M",5,{"$f":"fetchcomment(E129)","v":"08-1G6404\n11-430254\n08-1J2604\n03-3H6104\n01-0H1504"},5,{"$f":"fetchcomment(G129)","v":"SULLY-MILLER CONTRACTING COMPANY\nCSI/CJA A JOINT VENTURE\nMARTIN MARIETTA SAN DIEGO AGGREGATES LLC DBA ATP GENERAL ENGINEERING CONTRACTORS\nDESILVA GATES CONSTRUCTION LLC\nGRANITE CONSTRUCTION COMPANY"},"1,3,8,11"]
["DOUBLE G'S SUPPLY, INC.",33,118718.25,"F",3,{"$f":"fetchcomment(E130)","v":"03-1H6304\n10-1E3004\n03-4H8904"},3,{"$f":"fetchcomment(G130)","v":"O.C. JONES & SONS, INC.\nBAY CITIES PAVING & GRADING, INC.\nST. FRANCIS ELECTRIC LLC"},"3,10"]
["K & G CONCRETE PUMPING",-4142,28899,"M",1,{"$f":"fetchcomment(E131)","v":"01-0E11U4"},1,{"$f":"fetchcomment(G131)","v":"GRANITE CONSTRUCTION COMPANY"},1]
["SYNERGY TRAFFIC CONTROL",-4142,853050,"M",2,{"$f":"fetchcomment(E132)","v":"06-0X3304\n11-2T3434"},2,{"$f":"fetchcomment(G132)","v":"SECURITY PAVING COMPANY\nWALSH CONSTRUCTION COMPANY II, LLC"},"6,11"]
["TAYLOR WATER SERVICES",-4142,30000,"M",1,{"$f":"fetchcomment(E133)","v":"01-0J6314"},1,{"$f":"fetchcomment(G133)","v":"GRANTIE CONSTRUCTION COMPANY"},1]
["THE QUALITY FIRM, ACS, AC",-4142,147610,"M",2,{"$f":"fetchcomment(E134)","v":"11-430394\n07-322504"},2,{"$f":"fetchcomment(G134)","v":"GRIFFITH COMPANY\nBEADOR CONSTRUCTION COMPANY, INC."},"7,11"]
["THOMPSON CONTRACTING",-4142,483240,"M",3,{"$f":"fetchcomment(E135)","v":"03-1H6304\n04-4J5404\n03-22J3204"},2,{"$f":"fetchcomment(G135)","v":"O.C. JONES & SONS, INC.\nGHILOTTI BROS, INC."},"3,4"]
["TK TRANSPORTATION",-4142,117640,"M",1,{"$f":"fetchcomment(E136)","v":"02-4H6604"},1,{"$f":"fetchcomment(G136)","v":"STIMPEL-WIEBELHAUS ASSOCIATES INC"},2]
[null,null,null,null,null,{"$f":"fetchcomment(E137)","v":""},null,{"$f":"fetchcomment(G137)","v":""}]
[]
["Sub Cont Asian","Column1","Dollars","M/F","Contract","Contract #","Number of Primes ","Prime Name","Districts"]
["A1 TRUCKING SVS, INC.",43,13161037.120000001,"M",7,{"$f":"fetchcomment(E140)","v":"04-2G7804\n10-1E3004\n04-1Q5814\n06-0X3004\n04-0Q0704\n04-3W7504\n04-3W7604"},4,{"$f":"fetchcomment(G140)","v":"FBD VANGUARD CONSTRUCTION, INC.\nBAY CITIES PAVING & GRADING, INC.\nST. FRANCIS ELECTRIC LLC\nAMERICAN CIVIL CONSTRUCTORS WEST COAST, LLC dba ACC WEST COAST"},"4,6,10"]
["ACCURATE EARTHWORKS INC",-4142,419875.2,"M",1,{"$f":"fetchcomment(E141)","v":"04-0K1304"},1,{"$f":"fetchcomment(G141)","v":"DESILVA GATES CONSTRUCTION LLC"},4]
["CHANNA TRUCKING INC",43,141300,"F",1,{"$f":"fetchcomment(E142)","v":"04-0K7804"},1,{"$f":"fetchcomment(G142)","v":"GHILOTTI BROS INC"},4]
["DESTINATION ANYWHERE, INC.",-4142,1048545,"M",1,{"$f":"fetchcomment(E143)","v":"03-1H6304"},1,{"$f":"fetchcomment(G143)","v":"O.C. JONES & SONS, INC."},3]
["HEIR & SON CONSTRUCTION, INC.",-4142,52764.2,"M",1,{"$f":"fetchcomment(E144)","v":"04-3W7604"},1,{"$f":"fetchcomment(G144)","v":"AMERICAN CIVIL CONSTRUCTORS WEST COAST, LLC"},4]
["JASS BOYS TRUCK LINES",-4142,3505900,"M",2,{"$f":"fetchcomment(E145)","v":"04-4J5404\n10-1E3004"},2,{"$f":"fetchcomment(G145)","v":"GHILOTTI BROS, INC.\nBAY CITIES PAVING & GRADING, INC."},"4,10"]
["S & S TRUCKING",43,25800,"M",1,{"$f":"fetchcomment(E146)","v":"04-3Q7604"},1,{"$f":"fetchcomment(G146)","v":"GHILOTTI BROS INC"},4]
["SEQUOIA CONSULTANT INC",33,1602005,"M",9,{"$f":"fetchcomment(E147)","v":"03-4H0704\n07-322904\n03-4H6004\n11-430254\n12-0S1504\n05-1H3104\n08-1J2604\n11-2T3434\n03-3H6104"},8,{"$f":"fetchcomment(G147)","v":"ST. FRANCIS ELECTRIC LLC\nC. A. RASMUSSEN, INC.\nDESILVA GATES CONSTRUCTION\nCSI/CJA A JOINT VENTURE\nPOWELL CONSTRUCTORS INC\nGRANITE CONSTRUCTION COMPANY\nMARTIN MARIETTA SAN DIEGO AGGREGATES LLC DBA ATP GENERAL ENGINEERING CONTRACTORS\nWALSH CONSTRUCTION COMPANY II, LLC"},"3,5,7,8,11,12"]
["SIERRA GEOTECH DBE, INC.",-4142,625976,"F",5,{"$f":"fetchcomment(E148)","v":"03-1H9904\n03-3H6104\n04-3Q7604\n01-0H1504\n06-0X2604"},4,{"$f":"fetchcomment(G148)","v":"A. TEICHERT & SON INC DBA TEICHERT CONSTRUCTION\nDESILVA GATES CONSTRUCTION LLC\nGHILOTTI BROS INC\nGRANITE CONSTRUCTION COMPANY"},"1,3,4,6"]
["SONNY'S TRUCKING",43,160500,"M",1,{"$f":"fetchcomment(E149)","v":"10-1E3004"},1,{"$f":"fetchcomment(G149)","v":"BAY CITIES PAVING & GRADING, INC."},10]
["TSI ENGINEERING, INC.",-4142,12238307.83,"M",1,{"$f":"fetchcomment(E150)","v":"10-1C2704"},1,{"$f":"fetchcomment(G150)","v":"TSI ENGINEERING, INC."},10]
[null,null,null,null,null,{"$f":"fetchcomment(E151)","v":""},null,{"$f":"fetchcomment(G151)","v":""}]
[]
["Asian Pacific","Column1","Dollars","M/F","Contract","Contract #","Number of Primes ","Prime Name","Districts"]
["ACE FENCE COMPANY",-4142,4383274.45,"F",12,{"$f":"fetchcomment(E154)","v":"06-0X3304\n07-320804\n11-430394\n11-430254\n12-0S1504\n05-1H3104\n07-351304\n08-1J2604\n11-2T3434\n06-0W9704\n06-0X3804\n07-322504"},10,{"$f":"fetchcomment(G154)","v":"SECURITY PAVING COMPANY\nCALPROMAX ENGINEERING, INC.\nGRIFFITH COMPANY\nPOWELL CONSTRUCTORS INC\nCSI/CJA A JOINT VENTURE\nGRANITE CONSTRUCTION COMPANY\nMARTIN MARIETTA SAN DIEGO AGGREGATES LLC DBA ATP GENERAL ENGINEERING CONTRACTORS\nWALSH CONSTRUCTION COMPANY II, LLC\nBORTOLUSSI & WATKIN INC\nBEADOR CONSTRUCTION COMPANY, INC."},"5,6,7,8,11,12"]
["BAY TECH ENGINEERING, INC.",-4142,1607500,"M",1,{"$f":"fetchcomment(E155)","v":"04-2Q5704"},1,{"$f":"fetchcomment(G155)","v":"DISNEY CONSTRUCTION, INC."},4]
["BRIDGE RUBBER BEARING",-4142,59896,"M",4,{"$f":"fetchcomment(E156)","v":"01-0J6314\n10-0G8304\n01-0E11U4\n03-3H6104"},3,{"$f":"fetchcomment(G156)","v":"GRANTIE CONSTRUCTION COMPANY\nVIKING CONSTRUCTION COMPANY\nDESILVA GATES CONSTRUCTION LLC"},"1,3,10"]
["CALIFORNIA PROFESSIONAL",-4142,3595549,"M",3,{"$f":"fetchcomment(E157)","v":"07-320804\n07-321604\n08-1J2604"},3,{"$f":"fetchcomment(G157)","v":"CALPROMAX ENGINEERING, INC.\nR.J. NOBLE COMPANY\nMARTIN MARIETTA SAN DIEGO AGGREGATES LLC DBA ATP GENERAL ENGINEERING CONTRACTORS"},"7,8"]
["GLOBAL ROAD SEALING INC",-4142,2720714,"M",7,{"$f":"fetchcomment(E158)","v":"06-0X3304\n07-322904\n12-0N8904\n07-338604\n08-496124\n07-349504\n12-0S3104"},4,{"$f":"fetchcomment(G158)","v":"SECURITY PAVING COMPANY\nC. A. RASMUSSEN, INC.\nALFARO COMMUNICATIONS CONSTRUCTION, INC.\nAUTOBAHN CONSTRUCTION INC."},"6,7,8,12"]
["HUNSAKER & ASSOCIATES",-4142,115108,"M",1,{"$f":"fetchcomment(E159)","v":"07-322904"},1,{"$f":"fetchcomment(G159)","v":"C. A. RASMUSSEN, INC."},7]
["JJ NGUYEN",33,62752,"M",1,{"$f":"fetchcomment(E160)","v":"04-4J5404"},1,{"$f":"fetchcomment(G160)","v":"GHILOTTI BROS, INC."},4]
["LMS TRANSPORT",-4142,2543228.5099999998,"M",3,{"$f":"fetchcomment(E161)","v":"06-0X3304\n07-322904\n11-430394"},3,{"$f":"fetchcomment(G161)","v":"SECURITY PAVING COMPANY\nC. A. RASMUSSEN, INC.\nGRIFFITH COMPANY"},"6,7,11"]
["NITTA EROSION CONTROL",-4142,14448,"F",2,{"$f":"fetchcomment(E162)","v":"02-4H0004\n01-0H1504"},2,{"$f":"fetchcomment(G162)","v":"ROCKY MOUNTAIN CONSTRUCTION\nGRANITE CONSTRUCTION COMPANY"},"1,2"]
["PRIME SUPPLY 1",-4142,240286.66,"F",6,{"$f":"fetchcomment(E163)","v":"08-1C5704\n10-1H6504\n03-1H9904\n05-1H3104\n07-347504\n11-2T3434"},6,{"$f":"fetchcomment(G163)","v":"SEMA CONSTRUCTION INC\nMARINA LANDSCAPE INC\nA. TEICHERT & SON INC DBA TEICHERT CONSTRUCTION\nGRANITE CONSTRUCTION COMPANY\nGRIFFITH COMPANY\nWALSH CONSTRUCTION COMPANY II, LLC"},"3,5,7,8,10,11"]
["TRI COUNTIES TRUCKING",43,4575641,"F",4,{"$f":"fetchcomment(E164)","v":"03-4H0704\n03-1H9904\n02-4H0004\n03-3H6104"},3,{"$f":"fetchcomment(G164)","v":"DESILVA GATES CONSTRUCTION\nA. TEICHERT & SON INC DBA TEICHERT CONSTRUCTION\nROCKY MOUNTAIN CONSTRUCTION"},"2,3"]
["TRAFFIC LOOPS CRACKFILLING",-4142,264700,"F",1,{"$f":"fetchcomment(E165)","v":"11-430254"},1,{"$f":"fetchcomment(G165)","v":"CSI/CJA A JOINT VENTURE"},11]
[null,null,null,null,null,{"$f":"fetchcomment(E166)","v":""},null,{"$f":"fetchcomment(G166)","v":""}]
[]
["Other","Column1","Dollars","M/F","Contract","Contract #","Number of Primes ","Prime Name","Districts"]
["ALFARO COMMUNICATIONS CONSTRUCTION, INC.",null,{"$f":"'[1]Construction Worksheet'!AW10","v":1350925.9},"M",1,{"$f":"fetchcomment(E169)","v":"08-1J6804\n"},1,{"$f":"fetchcomment(G169)","v":"ALFARO COMMUNICATIONS CONSTRUCTION INC"},8]
[null,null,null,null,null,{"$f":"fetchcomment(E170)","v":""},null,{"$f":"fetchcomment(G170)","v":""}]
[]
["Non Minority Women","Column1","Dollars","M/F","Contract","Contract #","Number of Primes ","Prime Name","Districts"]
["ACTION SWEEPING SERVICES, INC.",43,463440,"F",3,{"$f":"fetchcomment(E173)","v":"03-1H6304\n03-2J3204\n04-1J9604"},1,{"$f":"fetchcomment(G173)","v":"O.C. JONES & SONS, INC."},"3,4"]
["ALTA GROUP",-4142,1174003,"F",3,{"$f":"fetchcomment(E174)","v":"01-0E11U4\n10-1E3004\n04-0Q6104"},3,{"$f":"fetchcomment(G174)","v":"GRANITE CONSTRUCTION COMPANY\nBAY CITIES PAVING & GRADING, INC.\nHOSELEY CORPORATION"},"1,4,10"]
["AMERICAN PAVING SUPPLY",33,616204.21,"F",2,{"$f":"fetchcomment(E175)","v":"11-430254\n10-1E3004"},1,{"$f":"fetchcomment(G175)","v":"CSI/CJA A JOINT VENTURE\nBAY CITIES PAVING & GRADING, INC."},"10,11"]
["ANYTHING WORKS",-4142,75400,"F",1,{"$f":"fetchcomment(E176)","v":"01-0H1504"},1,{"$f":"fetchcomment(G176)","v":"GRANITE CONSTRUCTION COMPANY"},1]
["AURORA INDUSTRIAL HYGIENE",-4142,4200,"F",2,{"$f":"fetchcomment(E177)","v":"05-1H3104\n06-0W9704"},2,{"$f":"fetchcomment(G177)","v":"GRANITE CONSTRUCTION COMPANY\nBORTOLUSSI & WATKIN"},"5,6"]
["AVILA TRAFFIC SAFETY",33,463900,"F",1,{"$f":"fetchcomment(E178)","v":"06-0U4304"},1,{"$f":"fetchcomment(G178)","v":"GRIFFITH COMPANY"},6]
["BANCROFT CONSTRUCTION SERVICES",43,622237,"F",1,{"$f":"fetchcomment(E179)","v":"11-2T3434"},1,{"$f":"fetchcomment(G179)","v":"WALSH CONSTRUCTION COMPANY II, LLC"},11]
["BOBS BACKHOE & TRUCKING",43,213231,"F",1,{"$f":"fetchcomment(E180)","v":"05-1H3104"},1,{"$f":"fetchcomment(G180)","v":"GRANITE CONSTRUCTION COMPANY"},5]
["CAL SIGNAL CORP",33,994034.89,"F",4,{"$f":"fetchcomment(E181)","v":"02-3H6504\n02-4H0204\n02-4H0504\n10-1E3004"},3,{"$f":"fetchcomment(G181)","v":"J.F. SHEA CONSTRUCTION INC\nTULLIS INC\nBAY CITIES PAVING & GRADING, INC."},"2,10"]
["CALIFORNIA CONSTRUCTION",-4142,179440,"F",1,{"$f":"fetchcomment(E182)","v":"06-0X2604"},1,{"$f":"fetchcomment(G182)","v":"A. TEICHERT & SON, INC. DBA TEICHERT CONSTRUCTION"},6]
["CAT TRACKING",-4142,300027.25,"F",2,{"$f":"fetchcomment(E183)","v":"07-320804\n06-1A4604"},2,{"$f":"fetchcomment(G183)","v":"CALPROMAX ENGINEERING, INC.\nCAL VALLEY CONSTRUCTION INC"},"6,7"]
["CES",-4142,91647,"F",1,{"$f":"fetchcomment(E184)","v":"12-0N8904"},1,{"$f":"fetchcomment(G184)","v":"SECURITY PAVING COMPANY, INC."},12]
["CHAVEZ GENERAL ENGINEERING",-4142,3798000,"F",2,{"$f":"fetchcomment(E185)","v":"02-3H6804\n02-4H0004"},2,{"$f":"fetchcomment(G185)","v":"J.F. SHEA CONSTRUCTION\nROCKY MOUNTAIN CONSTRUCTION"},2]
["CMC TRAFFIC CONTROL",-4142,372880,"F",3,{"$f":"fetchcomment(E186)","v":"04-2G7804\n04-0Q6104\n04-4K1404"},3,{"$f":"fetchcomment(G186)","v":"FBD VANGUARD CONSTRUCTION, INC.\nHOSELEY CORPORATION\nGRANITE ROCK COMPANY"},4]
["COLUMBIA ELECTRIC, INC.",-4142,2513556,"F",4,{"$f":"fetchcomment(E187)","v":"04-2G7804\n04-0K7804\n04-4J5404\n04-1Q5814"},3,{"$f":"fetchcomment(G187)","v":"FBD VANGUARD CONSTRUCTION, INC.\nGHILOTTI BROS INC\nBAY CITIES PAVING & GRADING, INC."},4]
["COOPER ENGINEERING",33,847255.25,"F",1,{"$f":"fetchcomment(E188)","v":"11-430254"},1,{"$f":"fetchcomment(G188)","v":"CSI/CJA A JOINT VENTURE"},11]
["DEES BURKE ENGINEERING",-4142,8171038.8200000003,"F",13,{"$f":"fetchcomment(E189)","v":"01-0J6314\n02-3H6804\n10-0G8304\n03-1H9904\n11-430394\n03-4H6004\n04-0K7804\n12-0S1504\n04-4J5404\n07-351304\n03-3H6104\n04-1J9604\n06-0X3004"},10,{"$f":"fetchcomment(G189)","v":"GRANTIE CONSTRUCTION COMPANY\nJ.F. SHEA CONSTRUCTION COMPANY INC\nVIKING CONSTRUCTION COMPANY INC\nA. TEICHERT & SON INC DBA TEICHERT CONSTRUCTION\nGRIFFITH COMPANY\nDESILVA GATES CONSTRUCTION\nGHILOTTI BROS INC\nPOWELL CONSTRUCTORS\nO.C. JONES AND SONS INC\nBAY CITIES PAVING & GRADING INC"},"1,2,3,4,6,7,10,11,12"]
["DIVERSIFIED LANDSCAPE CO",-4142,6848690.3000000007,"F",5,{"$f":"fetchcomment(E190)","v":"11-430254\n08-1J2604\n07-349504\n07-322504\n08-1E3404"},5,{"$f":"fetchcomment(G190)","v":"CSI/CJA A JOINT VENTURE\nMARTIN MARIETTA SAN DIEGO AGGREGATES LLC DBA ATP GENERAL ENGINEERING CONTRACTORS\nALFARO COMMUNICATIONS CONSTRUCTION INC\nBEADOR CONSTRUCTION COMPANY, INC.\nDIVERSCAPE, INC. DBA DIVERSIFIED LANDSCAPE CO."},"7,8,11"]
["DOUBLE E TRANSPORTATION",33,2530997.75,"F",2,{"$f":"fetchcomment(E191)","v":"06-0U4304\n06-0X3804"},1,{"$f":"fetchcomment(G191)","v":"GRIFFITH COMPANY"},6]
["EVERLIGHTS, INC.",-4142,1977390,"F",1,{"$f":"fetchcomment(E192)","v":"07-355104"},1,{"$f":"fetchcomment(G192)","v":"ALDRIDGE ELECTRIC, INC."},7]
["GALLAWAY ENTERPRISES",-4142,107806,"F",4,{"$f":"fetchcomment(E193)","v":"02-4H0204\n03-4H6004\n03-1H6304\n03-3H6104"},3,{"$f":"fetchcomment(G193)","v":"TULLIS INC\nDESILVA GATES CONSTRUCTION\nO.C. JONES & SONS, INC."},"2,3"]
["GDS INDUSTRIES, INC.",-4142,234376.12,"F",2,{"$f":"fetchcomment(E194)","v":"03-4H8904\n04-0Q0704"},1,{"$f":"fetchcomment(G194)","v":"ST. FRANCIS ELECTRIC LLC"},"3,4"]
["J & M LAND RESTORATION INC",-4142,1356860,"F",4,{"$f":"fetchcomment(E195)","v":"06-0X3304\n06-0U4304\n06-0X3804\n09-368004"},3,{"$f":"fetchcomment(G195)","v":"SECURITY PAVING COMPANY\nGRIFFITH COMPANY\nPAPICH CONSTRUCTION COMPANY INC"},"6,9"]
["JARRETT FOUNDATIONS INC.",33,584670,"F",1,{"$f":"fetchcomment(E196)","v":"01-0E11U4"},1,{"$f":"fetchcomment(G196)","v":"GRANITE CONSTRUCTION COMPANY"},1]
["JOHNS EQUIPMENT RENTAL ",43,361536,"F",1,{"$f":"fetchcomment(E197)","v":"11-430254"},1,{"$f":"fetchcomment(G197)","v":"CSI/CJA A JOINT VENTURE"},11]
["K&K CONSTRUCTION SUPPLY, INC.",33,783559.76,"F",1,{"$f":"fetchcomment(E198)","v":"03-1H9904"},1,{"$f":"fetchcomment(G198)","v":"A. TEICHERT & SON INC DBA TEICHERT CONSTRUCTION"},3]
["LD INNOVATIONS",-4142,3593249.4,"F",3,{"$f":"fetchcomment(E199)","v":"04-0K1304\n03-4H8904\n04-0Q0704"},1,{"$f":"fetchcomment(G199)","v":"ST. FRANCIS ELECTRIC LLC"},"3,4"]
["LINDYS COLD PLANNING",-4142,6188183,"F",7,{"$f":"fetchcomment(E200)","v":"08-1G6404\n07-322904\n11-430394\n11-430254\n05-1H3104\n09-368004\n07-322504"},7,{"$f":"fetchcomment(G200)","v":"SULLY-MILLER CONTRACTING COMPANY\nC. A. RASMUSSEN, INC.\nGRIFFITH COMPANY\nCSI/CJA A JOINT VENTURE\nGRANITE CONSTRUCTION COMPANY\nPAPICH CONSTRUCTION COMPANY, INC.\nBEADOR CONSTRUCTION COMPANY, INC."},"5,7,8,9,11"]
["LMS TRANSPORT ",33,2585022.4,"F",4,{"$f":"fetchcomment(E201)","v":"07-321604\n05-1H3104\n11-2T3434\n09-368004"},4,{"$f":"fetchcomment(G201)","v":"R.J.NOBLE COMPANY\nGRANITE CONSTRUCTION COMPANY\nWALSH CONSTRUCTION COMPANY II, LLC\nPAPICH CONSTRUCTION COMPANY, INC."},"5,7,9,11"]
["LOWERS INDUSTRIAL SUPPLY",33,394898.47,"F",2,{"$f":"fetchcomment(E202)","v":"12-0S1504\n07-351304"},1,{"$f":"fetchcomment(G202)","v":"POWELL CONSTRUCTORS INC"},"7,12"]
["MCW TRAFFIC CONTROL",-4142,541295,"F",4,{"$f":"fetchcomment(E203)","v":"02-4H6604\n10-1L6304\n03-1H6304\n10-1E3004"},4,{"$f":"fetchcomment(G203)","v":"STIMPEL-WIEBELHAUS ASSOCIATES INC\nCORAL CONSTRUCTION COMPANY\nO.C. JONES & SONS, INC.\nBAY CITIES PAVING & GRADING, INC."},"2,5,10"]
["MOUNTAINVEIW BIOLOGICAL",-4142,182299.84,"F",2,{"$f":"fetchcomment(E204)","v":"08-1C5704\n08-1H9914"},2,{"$f":"fetchcomment(G204)","v":"SEMA CONSTRUCTION INC\nPETERSON-CHASE GENERAL ENGINEERING CONSTRUCTION INC."},8]
["NICHOLLS TRUCKING INC",43,648750,"F",1,{"$f":"fetchcomment(E205)","v":"01-0H6104"},1,{"$f":"fetchcomment(G205)","v":"MERCER FRASER COMPANY"},1]
["PAYCO SPECIALTIES",-4142,1895878,"F",4,{"$f":"fetchcomment(E206)","v":"11-430304\n11-430394\n11-430254\n11-2T3434"},4,{"$f":"fetchcomment(G206)","v":"SB GENERAL ENGINEERING INC\nGRIFFITH COMPANY\nCSI/CJA A JOINT VENTURE\nWALSH CONSTRUCTION COMPANY II, LLC"},11]
["PC & N CONSTRUCTION INC",-4142,3625685.0900000003,"F",11,{"$f":"fetchcomment(E207)","v":"02-3H6804\n02-4H0204\n02-3H6504\n10-1L6304\n02-4H0504\n04-0K7804\n10-1E3004\n04-1Q5814\n02-4H0004\n04-0Q6104\n06-0X2604"},6,{"$f":"fetchcomment(G207)","v":"J.F. SHEA CONSTRUCTION INC\nTULLIS INC\nCORAL CONSTRUCTION COMPANY\nGHILOTTI BROS\nBAY CITIES PAVING & GRADING, INC.\nROCKY MOUNTAIN CONSTRUCTION \nHOSELEY CORPORATION\nA. TEICHERT & SON, INC. DBA TEICHERT CONSTRUCTION"},"2,4,6,10"]
["PLAYA SAFETY, INC.",-4142,402407.92000000004,"F",5,{"$f":"fetchcomment(E208)","v":"07-351304\n08-1H9914\n10-1E3004\n11-2T3434\n12-0S3104"},5,{"$f":"fetchcomment(G208)","v":"POWELL CONSTRUCTORS, INC.\nPETERSON-CHASE GENERAL ENGINEERING CONSTRUCTION INC.\nBAY CITIES PAVING & GRADING, INC.\nWALSH CONSTRUCTION COMPANY II, LLC\nAUTOBAHN CONSTRUCTION INC."},"7,8,10,11,12"]
["QUALITY HYDROSEEDING & RESTORATION",33,447000,"F",1,{"$f":"fetchcomment(E209)","v":"08-1J2604"},1,{"$f":"fetchcomment(G209)","v":"MARTIN MARIETTA SAN DIEGO AGGREGATES LLC DBA ATP GENERAL ENGINEERING CONTRACTORS"},8]
["ROBERTS OIL CORPORATION",-4142,120000,"F",1,{"$f":"fetchcomment(E210)","v":"12-0N8904"},1,{"$f":"fetchcomment(G210)","v":"SECURITY PAVING COMPANY, INC."},12]
["ROLL N ROCK CONSTRUCTION",-4142,8173043.3799999999,"F",11,{"$f":"fetchcomment(E211)","v":"01-0H6104\n02-3H6504\n02-3H6804\n02-4H0204\n03-4H0704\n10-0G8304\n03-1H9904\n02-4H0004\n03-3H6104\n04-3Q7604\n04-3W7604"},9,{"$f":"fetchcomment(G211)","v":"MERCER FRASER COMPANY\nJ.F. SHEA CONSTRUCTION INC\nTULLIS INC\nDESILVA GATES CONSTRUCTION\nVIKING CONSTRUCTION & MATERIALS INC\nA. TEICHERT & SON INC DBA TEICHERT CONSTRUCTION\nROCKY MOUNTAIN CONSTRUCTION \nGHILOTTI BROS INC\nAMERICAN CIVIL CONSTRUCTORS WEST COAST, LLC"},"1,2,3,4,10"]
["ROUCH REBAR INC",-4142,126335.99,"F",3,{"$f":"fetchcomment(E212)","v":"11-430254\n12-0S1504\n07-351304"},2,{"$f":"fetchcomment(G212)","v":"CSI/CJA A JOINT VENTURE\nPOWELL CONSTRUCTORS INC"},"7,11,12"]
["RUPERT CONSTRUCTION SUPPLY",33,493311.06,"F",3,{"$f":"fetchcomment(E213)","v":"12-0S1504\n11-2T3434\n07-322504"},3,{"$f":"fetchcomment(G213)","v":"POWELL CONSTRUCTORS INC\nWALSH CONSTRUCTION COMPANY II, LLC\nBEADOR CONSTRUCTION COMPANY, INC."},"7,11,12"]
["S.A.M. RHODES",-4142,115250,"F",4,{"$f":"fetchcomment(E214)","v":"02-3H82U4\n03-4H0704\n02-4H0004\n01-0H1504"},4,{"$f":"fetchcomment(G214)","v":"HAT CREEK CONSTRUCTION MATERIALS\nDESILVA GATES CONSTRUCTION LLC\nROCKY MOUNTAIN CONSTRUCTION\nGRANITE CONSTRUCTION COMPANY"},"1,2,3"]
["SUPER SEAL & STRIPE",-4142,103230,"F",1,{"$f":"fetchcomment(E215)","v":"05-1H3104"},1,{"$f":"fetchcomment(G215)","v":"GRANITE CONSTRUCTION COMPANY"},5]
["SUPERIOR HYDROSEEDING",-4142,6961.5,"F",1,{"$f":"fetchcomment(E216)","v":"10-1L6304"},1,{"$f":"fetchcomment(G216)","v":"CORAL CONSTRUCTION COMPANY"},10]
["T & S DVBE",33,12294673.960000001,"F",15,{"$f":"fetchcomment(E217)","v":"01-0J6314\n02-3H82U4\n01-0E11U4\n04-2G7804\n02-0J6404\n02-4H0504\n04-0K7804\n03-1H6304\n04-4J5404\n10-1E3004\n01-0C55U4\n04-1J9604\n01-0H1504\n03-4H8904\n04-0Q0704"},9,{"$f":"fetchcomment(G217)","v":"GRANTIE CONSTRUCTION COMPANY\nHAT CREEK CONSTRUCTION MATERIALS\nFBD VANGUARD CONSTRUCTION, INC.\nBALDWIN CONTRACTING COMPANY INC DBA KNIFE RIVER\nTULLIS INC\nGHILOTTI BROS, INC.\nO.C. JONES & SONS, INC.\nBAY CITIES PAVING & GRADING, INC.\nST. FRANCIS ELECTRIC LLC"},"1,2,3,4,10"]
["TEK SERVICES ",33,1519498.81,"F",3,{"$f":"fetchcomment(E218)","v":"11-430254\n07-348804\n07-349504"},2,{"$f":"fetchcomment(G218)","v":"CSI/CJA A JOINT VENTURE\nALFARO COMMUNICATIONS CONSTRUCTION INC"},"7,11"]
["TRIUMPH GEO SYNTHETICS INC",33,19190.96,"F",2,{"$f":"fetchcomment(E219)","v":"12-0S1504\n07-351304"},1,{"$f":"fetchcomment(G219)","v":"POWELL CONSTRUCTORS INC"},"7,12"]
["TYRRELL RESOURCES",-4142,2700533.5,"F",11,{"$f":"fetchcomment(E220)","v":"02-3H6804\n02-3H82U4\n03-4H0704\n10-0G8304\n01-0E11U4\n03-1H9904\n02-0J6404\n02-4H0504\n03-1H6304\n01-0C55U4\n03-3H6104"},9,{"$f":"fetchcomment(G220)","v":"J.F. SHEA CONSTRUCTION INC\nHAT CREEK CONSTRUCTION MATERIALS INC\nDESILVA GATES CONSTRUCTION \nVIKING CONSTRUCTION COMPANY \nGRANITE CONSTRUCTION COMPANY\nA. TEICHERT & SON INC DBA TEICHERT CONSTRUCTION\nBALDWIN CONTRACTING COMPANY INC DBA KNIFE RIVER \nTULLIS\nO.C. JONES & SONS, INC."},"1,2,3,10"]
["VERIDICO GROUP INC",-4142,10380,"F",1,{"$f":"fetchcomment(E221)","v":"02-3H6504"},1,{"$f":"fetchcomment(G221)","v":"J.F. SHEA CONSTRUCTION"},2]
["WATER COMPONENTS & BUILDING",-4142,11743.54,"F",2,{"$f":"fetchcomment(E222)","v":"04-4J5404\n04-3Q7604"},1,{"$f":"fetchcomment(G222)","v":"GHILOTTI BROS, INC."},4]
["WEST COAST WATER & TRUCKING",43,1981800,"F",4,{"$f":"fetchcomment(E223)","v":"03-1H9904\n03-1H6304\n03-2J3204\n03-3H6104"},3,{"$f":"fetchcomment(G223)","v":"A. TEICHERT & SON INC DBA TEICHERT CONSTRUCTION\nO.C. JONES & SONS, INC.\nDESILVA GATES CONSTRUCTION LLC"},3]
["WHITE CAP READY MIX INC",33,258757.5,"F",1,{"$f":"fetchcomment(E224)","v":"02-0J6404"},1,{"$f":"fetchcomment(G224)","v":"BALDWIN CONTRACTING COMPANY, INC. DBA KNIFE RIVER CONSTRUCTION"},2]
[]
[null,{"$f":"COUNTIF(B30:B220, \"33\")","v":28}]
[null,{"$f":"COUNTIF(B30:B220, \"43\")","v":24}]
[null,{"$f":"COUNTIF(B30:B220, \"-4142\")","v":120}]
["Prime Name",null,"Number of Contracts","Contract #","Prime Name","Number of Contracts","Contract #","Prime Name","Number of Contracts","Contract #"]
["A. TEICHERT & SON INC DBA \nTEICHERT CONSTRUCTION",null,2,{"$f":"fetchcomment(C230)","v":"03-1H9904\n06-0X2604"},"DISNEY CONSTRUCTION, INC.",1,{"$f":"fetchcomment(F230)","v":"04-2Q5704"},"POLO ENGINEERING INC",1,{"$f":"fetchcomment(I230)","v":"07-357004"}]
["ACCU CONSTRUCTION INC",null,1,{"$f":"fetchcomment(C231)","v":"08-1H3804"},"DIVERSCAPE, INC. DBA DIVERSIFIED LANDSCAPE CO.",1,{"$f":"fetchcomment(F231)","v":"08-1E3404"},"POWELL CONSGTRUCTORS INC",2,{"$f":"fetchcomment(I231)","v":"12-0S1504\n07-351304"}]
["ALDRIDGE ELECTRIC, INC.",null,1,{"$f":"fetchcomment(C232)","v":"07-348804\n07-349504\n08-1J6804"},"FBD VANGUARD CONSTRUCTION, INC.",1,{"$f":"fetchcomment(F232)","v":"04-2G7804"},"R.J. NOBLE COMPANY",1,{"$f":"fetchcomment(I232)","v":"07-321604"}]
["ALFARO COMMUNICATIONS CONSTRUCTION INC",null,3,{"$f":"fetchcomment(C233)","v":"07-338604\n08-496124\n08-1J6804"},"FEC FUTURE CONTRACTORS AND ENGINEERS, INC.",1,{"$f":"fetchcomment(F233)","v":"07-330304"},"ROCKY MOUNTAIN CONSTRUCTION",1,{"$f":"fetchcomment(I233)","v":"02-4H0004"}]
["ALFARO COMMUNICATIONS CONSTRUCTION INC",null,2,{"$f":"fetchcomment(C234)","v":"07-348804\n07-349504"},"GHILOTTI BROS INC",3,{"$f":"fetchcomment(F234)","v":"04-0K7804\n04-4J5404\n04-3Q7604"},"SB GENERAL ENGINEERING, INC.",1,{"$f":"fetchcomment(I234)","v":"11-430304"}]
["AMERICAN CIVIL CONSTRUCTORS WEST COAST, LLC dba ACC WEST COAST",null,2,{"$f":"fetchcomment(C235)","v":"04-3W7504\n04-3W7604"},"GRANITE CONSTRUCTION COMPANY",5,{"$f":"fetchcomment(F235)","v":"01-0J6314\n01-0E11U4\n05-1H3104\n01-0C55U4\n01-0H1504"},"SECURITY PAVING COMPANY, INC.",2,{"$f":"fetchcomment(I235)","v":"06-0X3304\n12-0N8904"}]
["AUTOBAHN CONSTRUCTION INC.",null,1,{"$f":"fetchcomment(C236)","v":"12-0S3104"},"GRIFFITH COMPANY",5,{"$f":"fetchcomment(F236)","v":"06-0U4304\n11-430394\n07-347504\n06-0X3804\n04-4K1404"},"SEMA CONSTRUCTION, INC.",1,{"$f":"fetchcomment(I236)","v":"08-1C5704"}]
["BALDWIN CONTRACTING COMPANY INC DBA KINFE RIVER CONSTRUCTION",null,1,{"$f":"fetchcomment(C237)","v":"02-0J6404"},"HAT CREEK CONSTRUCTION & MATERIALS, INC.",1,{"$f":"fetchcomment(F237)","v":"02-3H82U4"},"ST. FRANCIS ELECTRIC LLC",3,{"$f":"fetchcomment(I237)","v":"04-0K1304\n03-4H8904\n04-0Q0704"}]
["BAY CITIES PAVING & GRADING, INC.",null,3,{"$f":"fetchcomment(C238)","v":"04-1Q5814\n10-1E3004\n06-0X3004"},"HOSELEY CORPORATION",1,{"$f":"fetchcomment(F238)","v":"04-0Q6104"},"STIMPEL-WIEBELHAUS ASSOCIATES,  INC.",1,{"$f":"fetchcomment(I238)","v":"02-4H6604"}]
["BEADOR CONSTRUCTION COMPANY, INC.",null,1,{"$f":"fetchcomment(C239)","v":"07-322504"},"J.F. SHEA CONSTRUCTION, INC.",2,{"$f":"fetchcomment(F239)","v":"02-3H6504\n02-3H6804"},"SULLY-MILLER CONTRACTING COMPANY",1,{"$f":"fetchcomment(I239)","v":"08-1G6404"}]
["BORTOLUSSI & WATKIN, INC.",null,1,{"$f":"fetchcomment(C240)","v":"06-0W9704"},"JOHN SEMSEN LANDSCAPING CO., INC.",1,{"$f":"fetchcomment(F240)","v":"04-4G21A4"},"TSI ENGINEERING, INC.",1,{"$f":"fetchcomment(I240)","v":"10-1C2704"}]
["C. A. RASMUSSEN, INC.",null,1,{"$f":"fetchcomment(C241)","v":"07-322904"},"MARINA LANDSCAPE INC.",1,{"$f":"fetchcomment(F241)","v":"10-1H6504"},"TULLIS, INC.",2,{"$f":"fetchcomment(I241)","v":"02-4H0204\n02-4H0504"}]
["CAL VALLEY CONSTRUCTION INC",null,1,{"$f":"fetchcomment(C242)","v":"06-1A4604"},"MARTIN MARIETTA SAN DIEGO AGGREGATES LLC DBA ATP GENERAL ENGINEERING CONTRACTORS",1,{"$f":"fetchcomment(F242)","v":"08-1J2604"},"VIKING CONSTRUCTION COMPANY, INC.",1,{"$f":"fetchcomment(I242)","v":"10-0G8304"}]
["CALPROMAX ENGINEERING, INC.",null,1,{"$f":"fetchcomment(C243)","v":"07-320804"},"MCCULLOUGH CONSTRUCTION",1,{"$f":"fetchcomment(F243)","v":"01-434844"},"WALSH CONSTRUCTION COMPANY II, LLC",1,{"$f":"fetchcomment(I243)","v":"11-2T3434"}]
["CORAL CONSTRUCTION COMPANY",null,1,{"$f":"fetchcomment(C244)","v":"10-1L6304"},"MERCER FRASER COMPANY",1,{"$f":"fetchcomment(F244)","v":"01-0H6104\n"}]
["CSI/CJA A JOINT VENTURE",null,1,{"$f":"fetchcomment(C245)","v":"11-430254"},"O.C. JONES & SONS, INC.",3,{"$f":"fetchcomment(F245)","v":"03-1H6304\n03-2J3204\n04-1J9604"}]
["DESILVA GATES CONSTRUCTION LLC",null,3,{"$f":"fetchcomment(C246)","v":"03-4H0704\n03-4H6004\n03-3H6104"},"PAPICH CONSTRUCTION COMPANY INC",1,{"$f":"fetchcomment(F246)","v":"09-368004"}]
["DIRT DYNASTY INC",null,1,{"$f":"fetchcomment(C247)","v":"10-1G2504"},"PETERSON-CHASE GENERAL ENGINEERING CONSTRUCTION INC.",1,{"$f":"fetchcomment(F247)","v":"08-1H9914"}]
[]
["To see names of prime contractors/contract numbers, place your cursor on comment tab (red triangle)."]
["Caltrans DBE Reports: http://www.dot.ca.gov/hq/bep/reports.htm"]